[Event "*** SCC Grand Prix: Titled Tuesday Blitz"]
[Site "Chess.com"]
[Date "2020.09.29"]
[Round "4"]
[White "krasavetc"]
[Black "Justinz"]
[Result "1-0"]
[WhiteElo "2316"]
[BlackElo "2429"]
[TimeControl "180+1"]
[EndTime "10:38:12 PDT"]
[Termination "krasavetc won by resignation"]

1. c4 {[%clk 0:03:00.9]} 1... e5 {[%clk 0:02:56.5]} 2. Nc3 {[%clk 0:03:00.9]}
2... Nc6 {[%clk 0:02:57.4]} 3. e3 {[%clk 0:02:58.9]} 3... Nf6 {[%clk 0:02:56.3]}
4. d4 {[%clk 0:02:58.4]} 4... Bb4 {[%clk 0:02:56.3]} 5. Nf3 {[%clk 0:02:56.3]}
5... d6 {[%clk 0:02:51.6]} 6. Bd2 {[%clk 0:02:51.5]} 6... O-O {[%clk 0:02:50.4]}
7. Be2 {[%clk 0:02:49.9]} 7... Bg4 {[%clk 0:02:48.6]} 8. O-O {[%clk 0:02:40.5]}
8... Re8 {[%clk 0:02:42]} 9. a3 {[%clk 0:02:31]} 9... Bxc3 {[%clk 0:02:39.8]}
10. Bxc3 {[%clk 0:02:31.2]} 10... Qe7 {[%clk 0:02:38.5]} 11. Re1 {[%clk
0:02:21.4]} 11... Rad8 {[%clk 0:02:38]} 12. Qc2 {[%clk 0:02:15.4]} 12... exd4
{[%clk 0:01:57.8]} 13. exd4 {[%clk 0:02:11.8]} 13... Qd7 {[%clk 0:01:54.8]} 14.
d5 {[%clk 0:01:56.8]} 14... Ne5 {[%clk 0:01:53]} 15. Nxe5 {[%clk 0:01:55.1]}
15... dxe5 {[%clk 0:01:51.3]} 16. Bxg4 {[%clk 0:01:55.4]} 16... Qxg4 {[%clk
0:01:50.6]} 17. Bxe5 {[%clk 0:01:48.1]} 17... c6 {[%clk 0:01:42.9]} 18. d6
{[%clk 0:01:20.4]} 18... c5 {[%clk 0:01:40]} 19. Rad1 {[%clk 0:00:59.5]} 19...
Re6 {[%clk 0:01:25.7]} 20. h3 {[%clk 0:00:51.8]} 20... Qh5 {[%clk 0:01:20]} 21.
Bg3 {[%clk 0:00:49.4]} 21... Rxe1+ {[%clk 0:01:09]} 22. Rxe1 {[%clk 0:00:48.2]}
22... h6 {[%clk 0:01:09.3]} 23. Re5 {[%clk 0:00:40.5]} 23... Qg6 {[%clk
0:01:04.4]} 24. Qxg6 {[%clk 0:00:37.5]} 24... fxg6 {[%clk 0:01:04.1]} 25. Rxc5
{[%clk 0:00:38.4]} 25... Rd7 {[%clk 0:01:03.1]} 26. Rc7 {[%clk 0:00:32.4]} 26...
Kf7 {[%clk 0:01:02.8]} 27. c5 {[%clk 0:00:25.9]} 27... Ke6 {[%clk 0:01:02.7]}
28. Rxd7 {[%clk 0:00:20.9]} 28... Nxd7 {[%clk 0:01:01.4]} 29. b4 {[%clk
0:00:21.8]} 29... Kd5 {[%clk 0:01:01.5]} 30. Kf1 {[%clk 0:00:20.9]} 30... Kc4
{[%clk 0:01:00.3]} 31. Bf4 {[%clk 0:00:21.4]} 31... Kb3 {[%clk 0:00:54.8]} 32.
Bc1 {[%clk 0:00:20.3]} 32... a5 {[%clk 0:00:54.7]} 33. Bd2 {[%clk 0:00:18]}
33... Ka4 {[%clk 0:00:52.8]} 34. bxa5 {[%clk 0:00:15.5]} 34... Kxa3 {[%clk
0:00:53.1]} 35. a6 {[%clk 0:00:13.2]} 1-0

[Event "*** SCC Grand Prix: Titled Tuesday Blitz"]
[Site "Chess.com"]
[Date "2020.09.29"]
[Round "4"]
[White "Chuchofrio1"]
[Black "Morshynska"]
[Result "1-0"]
[WhiteElo "2401"]
[BlackElo "2206"]
[TimeControl "180+1"]
[EndTime "10:38:12 PDT"]
[Termination "Chuchofrio1 won on time"]

1. d4 {[%clk 0:03:00.9]} 1... d5 {[%clk 0:02:57.9]} 2. c4 {[%clk 0:03:00.7]}
2... c6 {[%clk 0:02:56.7]} 3. cxd5 {[%clk 0:02:59.8]} 3... cxd5 {[%clk
0:02:55.4]} 4. Bf4 {[%clk 0:03:00.2]} 4... Nf6 {[%clk 0:02:56]} 5. Nc3 {[%clk
0:02:59.9]} 5... Nc6 {[%clk 0:02:56]} 6. e3 {[%clk 0:02:59.9]} 6... a6 {[%clk
0:02:55.1]} 7. Bd3 {[%clk 0:02:59]} 7... Bg4 {[%clk 0:02:54.3]} 8. Nge2 {[%clk
0:02:58.3]} 8... e6 {[%clk 0:02:51.1]} 9. O-O {[%clk 0:02:57.4]} 9... Bd6 {[%clk
0:02:50.3]} 10. f3 {[%clk 0:02:57.2]} 10... Bh5 {[%clk 0:02:48.8]} 11. Na4
{[%clk 0:02:56.6]} 11... O-O {[%clk 0:02:44.1]} 12. Nc5 {[%clk 0:02:55.5]} 12...
Rb8 {[%clk 0:02:35.3]} 13. Rc1 {[%clk 0:02:51.6]} 13... Ne7 {[%clk 0:02:29.1]}
14. Qb3 {[%clk 0:02:16]} 14... Bxf4 {[%clk 0:01:20.4]} 15. Nxf4 {[%clk
0:02:14.5]} 15... Bg6 {[%clk 0:01:12.7]} 16. Rc2 {[%clk 0:02:10.7]} 16... Bxd3
{[%clk 0:01:06.8]} 17. Nfxd3 {[%clk 0:02:09.9]} 17... Nf5 {[%clk 0:01:05.9]} 18.
Ne5 {[%clk 0:02:03.3]} 18... Qe7 {[%clk 0:01:01]} 19. Rfc1 {[%clk 0:02:01.1]}
19... h5 {[%clk 0:00:58.8]} 20. a4 {[%clk 0:01:53.9]} 20... h4 {[%clk
0:00:58.2]} 21. h3 {[%clk 0:01:52.5]} 21... g5 {[%clk 0:00:54.3]} 22. Qd3 {[%clk
0:01:47.7]} 22... Ng3 {[%clk 0:00:43.1]} 23. Kh2 {[%clk 0:01:34.1]} 23... Kg7
{[%clk 0:00:42.4]} 24. Qd2 {[%clk 0:01:14.1]} 24... Ngh5 {[%clk 0:00:26.9]} 25.
Ncd3 {[%clk 0:01:09.3]} 25... Qd6 {[%clk 0:00:14.4]} 26. Kg1 {[%clk 0:01:05.7]}
26... Nd7 {[%clk 0:00:09.4]} 27. Nxd7 {[%clk 0:01:02.4]} 27... Qxd7 {[%clk
0:00:10.1]} 28. e4 {[%clk 0:01:02.4]} 28... Nf4 {[%clk 0:00:02.1]} 29. Nxf4
{[%clk 0:01:00.9]} 29... gxf4 {[%clk 0:00:03]} 30. e5 {[%clk 0:01:01]} 30... f6
{[%clk 0:00:01.5]} 31. Qxf4 {[%clk 0:01:00.3]} 1-0

[Event "*** SCC Grand Prix: Titled Tuesday Blitz"]
[Site "Chess.com"]
[Date "2020.09.29"]
[Round "4"]
[White "KingCrusher275"]
[Black "Oleksandr_Bortnyk"]
[Result "0-1"]
[WhiteElo "2548"]
[BlackElo "2897"]
[TimeControl "180+1"]
[EndTime "10:38:16 PDT"]
[Termination "Oleksandr_Bortnyk won by resignation"]

1. d4 {[%clk 0:03:00.9]} 1... Nf6 {[%clk 0:02:57]} 2. c4 {[%clk 0:03:01.1]} 2...
b6 {[%clk 0:02:56.6]} 3. Nc3 {[%clk 0:02:59.7]} 3... Bb7 {[%clk 0:02:56.8]} 4.
e3 {[%clk 0:02:48.2]} 4... g6 {[%clk 0:02:55.4]} 5. Nf3 {[%clk 0:02:48.4]} 5...
Bg7 {[%clk 0:02:55.8]} 6. Be2 {[%clk 0:02:49]} 6... O-O {[%clk 0:02:56.7]} 7.
O-O {[%clk 0:02:49.7]} 7... e6 {[%clk 0:02:57.2]} 8. b3 {[%clk 0:02:50.1]} 8...
d5 {[%clk 0:02:57.5]} 9. Bb2 {[%clk 0:02:50.4]} 9... Nbd7 {[%clk 0:02:57.1]} 10.
cxd5 {[%clk 0:02:46.6]} 10... exd5 {[%clk 0:02:57.2]} 11. Rc1 {[%clk 0:02:45.4]}
11... a6 {[%clk 0:02:57.8]} 12. Qd2 {[%clk 0:02:44.3]} 12... Re8 {[%clk
0:02:57.7]} 13. Rfd1 {[%clk 0:02:38.7]} 13... Qe7 {[%clk 0:02:58.1]} 14. Qc2
{[%clk 0:02:35.9]} 14... Rac8 {[%clk 0:02:53.9]} 15. Qb1 {[%clk 0:02:35.2]}
15... Bh6 {[%clk 0:02:46.5]} 16. h3 {[%clk 0:02:28.4]} 16... Nh5 {[%clk
0:02:35.8]} 17. Bf1 {[%clk 0:02:21.4]} 17... f5 {[%clk 0:01:52.6]} 18. Re1
{[%clk 0:01:40.9]} 18... Qd6 {[%clk 0:01:45.7]} 19. Rcd1 {[%clk 0:01:28.7]}
19... b5 {[%clk 0:01:34.5]} 20. Ne2 {[%clk 0:01:14]} 20... b4 {[%clk 0:01:31]}
21. Nc1 {[%clk 0:01:12.5]} 21... a5 {[%clk 0:01:26.3]} 22. Nd3 {[%clk
0:01:11.6]} 22... Ba6 {[%clk 0:01:26.6]} 23. Nde5 {[%clk 0:01:03.7]} 23... Bxf1
{[%clk 0:01:27.5]} 24. Rxf1 {[%clk 0:01:00.6]} 24... c6 {[%clk 0:01:26]} 25.
Nxd7 {[%clk 0:00:59]} 25... Qxd7 {[%clk 0:01:26.9]} 26. Ne5 {[%clk 0:00:59.4]}
26... Qb7 {[%clk 0:01:23.1]} 27. Rc1 {[%clk 0:00:55.6]} 27... Bf8 {[%clk
0:01:20.4]} 28. Rc2 {[%clk 0:00:53.3]} 28... Nf6 {[%clk 0:01:20.4]} 29. Rfc1
{[%clk 0:00:51.4]} 29... Re6 {[%clk 0:01:20.6]} 30. Re2 {[%clk 0:00:38.3]} 30...
Nd7 {[%clk 0:01:15.7]} 31. Qd3 {[%clk 0:00:31.2]} 31... Nxe5 {[%clk 0:01:15.2]}
32. dxe5 {[%clk 0:00:31.4]} 32... c5 {[%clk 0:01:16.1]} 33. f4 {[%clk
0:00:31.1]} 33... a4 {[%clk 0:01:06.4]} 34. Rd2 {[%clk 0:00:30.6]} 34... a3
{[%clk 0:01:04.9]} 35. Ba1 {[%clk 0:00:29.4]} 35... Rd8 {[%clk 0:01:04.6]} 36.
Rdc2 {[%clk 0:00:27.6]} 36... Be7 {[%clk 0:01:01.9]} 37. Kh2 {[%clk 0:00:22.9]}
37... Qa6 {[%clk 0:01:01.1]} 38. Qxa6 {[%clk 0:00:18.6]} 38... Rxa6 {[%clk
0:01:02]} 39. Rd2 {[%clk 0:00:19]} 39... Kf7 {[%clk 0:00:58.8]} 40. Rcd1 {[%clk
0:00:19.4]} 40... Ke6 {[%clk 0:00:59.2]} 41. g4 {[%clk 0:00:19.9]} 41... Raa8
{[%clk 0:00:54.9]} 42. Kg3 {[%clk 0:00:20]} 42... Rac8 {[%clk 0:00:54.6]} 43.
Kf3 {[%clk 0:00:19.8]} 43... c4 {[%clk 0:00:54.8]} 44. bxc4 {[%clk 0:00:20]}
44... dxc4 {[%clk 0:00:55.1]} 45. Rxd8 {[%clk 0:00:18.8]} 45... Rxd8 {[%clk
0:00:56]} 46. Rxd8 {[%clk 0:00:18.8]} 46... Bxd8 {[%clk 0:00:56.9]} 47. e4
{[%clk 0:00:18.9]} 47... b3 {[%clk 0:00:56.5]} 48. gxf5+ {[%clk 0:00:18.9]}
48... gxf5 {[%clk 0:00:57.2]} 49. exf5+ {[%clk 0:00:19.6]} 49... Kxf5 {[%clk
0:00:58.1]} 50. axb3 {[%clk 0:00:19.3]} 50... cxb3 {[%clk 0:00:59]} 0-1

[Event "*** SCC Grand Prix: Titled Tuesday Blitz"]
[Site "Chess.com"]
[Date "2020.09.29"]
[Round "4"]
[White "Fh2411"]
[Black "Aleksey_Sorokin"]
[Result "0-1"]
[WhiteElo "2529"]
[BlackElo "2815"]
[TimeControl "180+1"]
[EndTime "10:38:16 PDT"]
[Termination "Aleksey_Sorokin won by resignation"]

1. d4 {[%clk 0:03:00.9]} 1... Nf6 {[%clk 0:02:51.1]} 2. Nf3 {[%clk 0:03:00.6]}
2... g6 {[%clk 0:02:35]} 3. g3 {[%clk 0:03:00]} 3... Bg7 {[%clk 0:02:35.3]} 4.
Bg2 {[%clk 0:03:00.9]} 4... d5 {[%clk 0:02:35.4]} 5. O-O {[%clk 0:03:00.8]} 5...
O-O {[%clk 0:02:36.3]} 6. c3 {[%clk 0:03:00.8]} 6... Nc6 {[%clk 0:02:35.5]} 7.
Bf4 {[%clk 0:02:57.7]} 7... b6 {[%clk 0:02:35.3]} 8. Nbd2 {[%clk 0:02:57.2]}
8... Bb7 {[%clk 0:02:35.4]} 9. Ne5 {[%clk 0:02:54.3]} 9... Nxe5 {[%clk
0:02:34.9]} 10. Bxe5 {[%clk 0:02:54.4]} 10... Bh6 {[%clk 0:02:33.7]} 11. Bxf6
{[%clk 0:02:50.2]} 11... exf6 {[%clk 0:02:34.6]} 12. e3 {[%clk 0:02:49.4]} 12...
Re8 {[%clk 0:02:33.5]} 13. c4 {[%clk 0:02:42.7]} 13... f5 {[%clk 0:02:31]} 14.
Re1 {[%clk 0:02:33.6]} 14... Rb8 {[%clk 0:02:28.9]} 15. Rc1 {[%clk 0:02:24.2]}
15... c5 {[%clk 0:02:28.1]} 16. dxc5 {[%clk 0:02:12.8]} 16... bxc5 {[%clk
0:02:29]} 17. cxd5 {[%clk 0:02:11.8]} 17... Bxd5 {[%clk 0:02:28.1]} 18. Bxd5
{[%clk 0:02:12.1]} 18... Qxd5 {[%clk 0:02:27.4]} 19. Nc4 {[%clk 0:02:12.6]}
19... Qa8 {[%clk 0:02:26.1]} 20. Qe2 {[%clk 0:01:35.6]} 20... f4 {[%clk
0:02:23.1]} 21. Nd6 {[%clk 0:01:32.1]} 21... Re6 {[%clk 0:02:17.4]} 22. Red1
{[%clk 0:01:17.7]} 22... fxe3 {[%clk 0:02:13.5]} 23. f4 {[%clk 0:01:17.7]} 23...
Bg7 {[%clk 0:02:09.9]} 24. b3 {[%clk 0:01:13.4]} 24... Bd4 {[%clk 0:02:06.6]}
25. Nc4 {[%clk 0:01:09.2]} 25... a5 {[%clk 0:02:05.2]} 26. Rd3 {[%clk
0:01:02.2]} 26... a4 {[%clk 0:02:04.8]} 27. h4 {[%clk 0:00:39.5]} 27... axb3
{[%clk 0:02:03.8]} 28. axb3 {[%clk 0:00:40.4]} 28... Qe4 {[%clk 0:01:59.3]} 29.
Kh2 {[%clk 0:00:38.4]} 29... h6 {[%clk 0:01:54]} 30. Re1 {[%clk 0:00:27.3]}
30... g5 {[%clk 0:01:51.4]} 31. fxg5 {[%clk 0:00:08.3]} 31... hxg5 {[%clk
0:01:50.5]} 32. h5 {[%clk 0:00:08.8]} 32... Rbe8 {[%clk 0:01:46.7]} 33. Kh3
{[%clk 0:00:08.3]} 33... f5 {[%clk 0:01:46.1]} 34. Rf1 {[%clk 0:00:08]} 34...
Kh7 {[%clk 0:01:42.5]} 35. Rdd1 {[%clk 0:00:08.1]} 35... Kh6 {[%clk 0:01:41.3]}
36. Rde1 {[%clk 0:00:08]} 36... Kg7 {[%clk 0:01:26.8]} 37. Kh2 {[%clk
0:00:07.2]} 37... Rh8 {[%clk 0:01:25.9]} 38. g4 {[%clk 0:00:06.6]} 38... fxg4
{[%clk 0:01:12.5]} 39. Kg3 {[%clk 0:00:06.1]} 39... Rxh5 {[%clk 0:01:09.7]} 40.
Qxg4 {[%clk 0:00:06.3]} 40... Be5+ {[%clk 0:01:09.6]} 41. Nxe5 {[%clk
0:00:05.9]} 41... Qxe5+ {[%clk 0:01:10.5]} 42. Kf3 {[%clk 0:00:05.8]} 42... Rf6+
{[%clk 0:01:09.4]} 43. Ke2 {[%clk 0:00:06]} 43... Rh2+ {[%clk 0:01:09.3]} 44.
Kd3 {[%clk 0:00:06.5]} 44... Rd6+ {[%clk 0:01:07.5]} 45. Kc4 {[%clk 0:00:06.9]}
45... Rd4+ {[%clk 0:01:07.7]} 0-1

[Event "*** SCC Grand Prix: Titled Tuesday Blitz"]
[Site "Chess.com"]
[Date "2020.09.29"]
[Round "4"]
[White "PattyCastillo"]
[Black "MarceloPlaya"]
[Result "0-1"]
[WhiteElo "1992"]
[BlackElo "2290"]
[TimeControl "180+1"]
[EndTime "10:38:25 PDT"]
[Termination "MarceloPlaya won by checkmate"]

1. d4 {[%clk 0:03:00.9]} 1... e6 {[%clk 0:02:59.4]} 2. Nf3 {[%clk 0:03:00.3]}
2... Nf6 {[%clk 0:02:58]} 3. e3 {[%clk 0:03:00.1]} 3... d5 {[%clk 0:02:57]} 4.
Bd3 {[%clk 0:02:59.7]} 4... c5 {[%clk 0:02:56.7]} 5. b3 {[%clk 0:02:59.4]} 5...
Nc6 {[%clk 0:02:56.6]} 6. Bb2 {[%clk 0:02:57.9]} 6... Be7 {[%clk 0:02:56.5]} 7.
O-O {[%clk 0:02:57.6]} 7... b6 {[%clk 0:02:56.1]} 8. Nbd2 {[%clk 0:02:57.5]}
8... O-O {[%clk 0:02:54.6]} 9. Ne5 {[%clk 0:02:57.6]} 9... Bb7 {[%clk 0:02:52]}
10. f4 {[%clk 0:02:57.3]} 10... Nd7 {[%clk 0:02:40.4]} 11. a3 {[%clk 0:02:54.6]}
11... f5 {[%clk 0:02:38.7]} 12. Qe2 {[%clk 0:02:52]} 12... Nf6 {[%clk
0:02:37.8]} 13. c4 {[%clk 0:02:47.2]} 13... Ne4 {[%clk 0:02:31.4]} 14. cxd5
{[%clk 0:02:44.4]} 14... exd5 {[%clk 0:02:29.8]} 15. Rac1 {[%clk 0:02:27.2]}
15... Nxe5 {[%clk 0:01:54.4]} 16. fxe5 {[%clk 0:02:19.9]} 16... Rc8 {[%clk
0:01:46.8]} 17. Nf3 {[%clk 0:01:36.2]} 17... Qd7 {[%clk 0:01:40]} 18. Rfd1
{[%clk 0:01:26.8]} 18... Qe6 {[%clk 0:01:36.4]} 19. Rc2 {[%clk 0:01:01.7]} 19...
g5 {[%clk 0:01:28]} 20. Rdc1 {[%clk 0:00:58.5]} 20... g4 {[%clk 0:01:26.3]} 21.
Nd2 {[%clk 0:00:51.1]} 21... cxd4 {[%clk 0:01:22.5]} 22. exd4 {[%clk 0:00:45.5]}
22... Bg5 {[%clk 0:01:15.8]} 23. Bxe4 {[%clk 0:00:43.6]} 23... fxe4 {[%clk
0:01:12.9]} 24. Rxc8 {[%clk 0:00:36.8]} 24... Rxc8 {[%clk 0:01:10.8]} 25. Rxc8+
{[%clk 0:00:36.6]} 25... Qxc8 {[%clk 0:01:09.4]} 26. Nf1 {[%clk 0:00:30]} 26...
Qf5 {[%clk 0:00:41.1]} 27. Ne3 {[%clk 0:00:27.7]} 27... Qf4 {[%clk 0:00:32.5]}
28. Nxg4 {[%clk 0:00:20.6]} 28... h5 {[%clk 0:00:31.1]} 29. Nf6+ {[%clk
0:00:18.9]} 29... Bxf6 {[%clk 0:00:29.5]} 30. exf6 {[%clk 0:00:19.1]} 30... e3
{[%clk 0:00:20.3]} 31. Bc1 {[%clk 0:00:14.6]} 31... Ba6 {[%clk 0:00:19.8]} 32.
Qxe3 {[%clk 0:00:12.3]} 32... Qf1# {[%clk 0:00:19.1]} 0-1

[Event "*** SCC Grand Prix: Titled Tuesday Blitz"]
[Site "Chess.com"]
[Date "2020.09.29"]
[Round "4"]
[White "Djager97"]
[Black "belisarius64"]
[Result "0-1"]
[WhiteElo "2479"]
[BlackElo "2690"]
[TimeControl "180+1"]
[EndTime "10:38:26 PDT"]
[Termination "belisarius64 won by resignation"]

1. e4 {[%clk 0:03:00.9]} 1... c5 {[%clk 0:02:59.3]} 2. Nf3 {[%clk 0:03:00.9]}
2... d6 {[%clk 0:02:57.7]} 3. d4 {[%clk 0:03:01.5]} 3... cxd4 {[%clk 0:02:57.5]}
4. Nxd4 {[%clk 0:03:02.2]} 4... Nf6 {[%clk 0:02:56.2]} 5. Nc3 {[%clk 0:03:02.8]}
5... a6 {[%clk 0:02:56.3]} 6. Bg5 {[%clk 0:03:03]} 6... e6 {[%clk 0:02:55.9]} 7.
f4 {[%clk 0:03:03]} 7... Qb6 {[%clk 0:02:49]} 8. a3 {[%clk 0:03:03]} 8... Nc6
{[%clk 0:02:44.8]} 9. Nb3 {[%clk 0:02:57.7]} 9... Be7 {[%clk 0:02:39.6]} 10. Qf3
{[%clk 0:02:48.2]} 10... Qc7 {[%clk 0:02:32.7]} 11. O-O-O {[%clk 0:02:44.2]}
11... h6 {[%clk 0:02:28]} 12. Bh4 {[%clk 0:02:38.7]} 12... Rb8 {[%clk
0:02:14.2]} 13. g4 {[%clk 0:02:36]} 13... b5 {[%clk 0:02:11.4]} 14. g5 {[%clk
0:02:30.8]} 14... hxg5 {[%clk 0:01:59.5]} 15. Bxg5 {[%clk 0:02:31.7]} 15... b4
{[%clk 0:01:58.2]} 16. axb4 {[%clk 0:02:31.5]} 16... Rxb4 {[%clk 0:01:58.2]} 17.
h4 {[%clk 0:01:56.6]} 17... Na5 {[%clk 0:01:45.5]} 18. Nd4 {[%clk 0:01:33.9]}
18... Bb7 {[%clk 0:01:34.4]} 19. h5 {[%clk 0:01:11.8]} 19... Qb6 {[%clk
0:01:25.8]} 20. Qd3 {[%clk 0:00:33.3]} 20... Rxb2 {[%clk 0:01:06.2]} 21. Bh3
{[%clk 0:00:18.8]} 21... Rxh5 {[%clk 0:01:00.8]} 22. Bxf6 {[%clk 0:00:03.5]}
22... Bxf6 {[%clk 0:00:56.7]} 23. Bg4 {[%clk 0:00:03.5]} 23... Rxh1 {[%clk
0:00:51.4]} 24. Rxh1 {[%clk 0:00:04.4]} 24... Bxd4 {[%clk 0:00:49.4]} 25. Rh8+
{[%clk 0:00:04.1]} 25... Kd7 {[%clk 0:00:48.4]} 26. f5 {[%clk 0:00:02.9]} 26...
Bxc3 {[%clk 0:00:37.8]} 27. fxe6+ {[%clk 0:00:02.9]} 27... fxe6 {[%clk
0:00:38.2]} 28. Bxe6+ {[%clk 0:00:02.7]} 28... Kxe6 {[%clk 0:00:32.5]} 29. Qh3+
{[%clk 0:00:03.1]} 29... Ke7 {[%clk 0:00:30.2]} 30. Qh4+ {[%clk 0:00:02.1]}
30... Bf6 {[%clk 0:00:29.7]} 0-1

[Event "*** SCC Grand Prix: Titled Tuesday Blitz"]
[Site "Chess.com"]
[Date "2020.09.29"]
[Round "4"]
[White "dominikaf"]
[Black "crazy_but_lazy"]
[Result "0-1"]
[WhiteElo "2312"]
[BlackElo "2536"]
[TimeControl "180+1"]
[EndTime "10:38:26 PDT"]
[Termination "crazy_but_lazy won by resignation"]

1. d4 {[%clk 0:03:00.9]} 1... d5 {[%clk 0:02:59.3]} 2. Bf4 {[%clk 0:03:00.7]}
2... c6 {[%clk 0:02:56.6]} 3. e3 {[%clk 0:03:00.2]} 3... Qb6 {[%clk 0:02:55.7]}
4. Qc1 {[%clk 0:02:59.3]} 4... Nf6 {[%clk 0:02:55.1]} 5. c4 {[%clk 0:02:59.5]}
5... Bf5 {[%clk 0:02:53.2]} 6. Nc3 {[%clk 0:02:58.1]} 6... e6 {[%clk 0:02:53.1]}
7. Nf3 {[%clk 0:02:56.5]} 7... Bb4 {[%clk 0:02:48.1]} 8. Be2 {[%clk 0:02:48.4]}
8... Ne4 {[%clk 0:02:46.8]} 9. O-O {[%clk 0:02:47.2]} 9... Nd7 {[%clk
0:02:39.6]} 10. c5 {[%clk 0:02:45.9]} 10... Qd8 {[%clk 0:02:36.2]} 11. a3 {[%clk
0:02:44.2]} 11... Ba5 {[%clk 0:02:36.3]} 12. b4 {[%clk 0:02:44.4]} 12... Bc7
{[%clk 0:02:35]} 13. Nxe4 {[%clk 0:02:30.7]} 13... Bxe4 {[%clk 0:02:34.6]} 14.
Qc3 {[%clk 0:02:21.4]} 14... O-O {[%clk 0:02:23.8]} 15. Nd2 {[%clk 0:02:16.2]}
15... Bg6 {[%clk 0:02:23.6]} 16. Bd3 {[%clk 0:02:12]} 16... Bxd3 {[%clk
0:02:18.3]} 17. Qxd3 {[%clk 0:02:11.2]} 17... e5 {[%clk 0:02:18.7]} 18. Bg3
{[%clk 0:02:08.5]} 18... e4 {[%clk 0:02:17.1]} 19. Qe2 {[%clk 0:02:05.2]} 19...
Bxg3 {[%clk 0:02:16.7]} 20. hxg3 {[%clk 0:02:03.9]} 20... Qg5 {[%clk 0:02:16]}
21. f3 {[%clk 0:01:19.8]} 21... exf3 {[%clk 0:01:51.3]} 22. Qxf3 {[%clk
0:01:11.2]} 22... Rae8 {[%clk 0:01:50.9]} 23. Rae1 {[%clk 0:01:10.6]} 23... Nf6
{[%clk 0:01:49.7]} 24. Qf4 {[%clk 0:01:05.5]} 24... Qg6 {[%clk 0:01:50]} 25. Rf3
{[%clk 0:00:33.7]} 25... Re6 {[%clk 0:01:49.5]} 26. Qf5 {[%clk 0:00:20]} 26...
Qxf5 {[%clk 0:01:45]} 27. Rxf5 {[%clk 0:00:20.9]} 27... Rfe8 {[%clk 0:01:45.7]}
28. Rf3 {[%clk 0:00:19]} 28... Ng4 {[%clk 0:01:40.5]} 29. e4 {[%clk 0:00:12.5]}
29... dxe4 {[%clk 0:01:37.5]} 30. Rf4 {[%clk 0:00:12.3]} 30... Nf6 {[%clk
0:01:28.8]} 31. g4 {[%clk 0:00:12.3]} 31... h6 {[%clk 0:01:29]} 32. Kf2 {[%clk
0:00:10.9]} 32... g5 {[%clk 0:01:17.4]} 33. Rf5 {[%clk 0:00:10.2]} 33... Nxg4+
{[%clk 0:01:10]} 34. Kg3 {[%clk 0:00:10.4]} 34... Nf6 {[%clk 0:01:07]} 35. Nf1
{[%clk 0:00:10.3]} 35... Nh5+ {[%clk 0:01:03.5]} 36. Kh2 {[%clk 0:00:09.4]}
36... Ng7 {[%clk 0:01:03.7]} 37. Rf2 {[%clk 0:00:08.8]} 37... f5 {[%clk
0:01:04.1]} 38. g3 {[%clk 0:00:08.4]} 38... e3 {[%clk 0:01:02]} 39. Rfe2 {[%clk
0:00:08.2]} 39... f4 {[%clk 0:01:01.8]} 40. gxf4 {[%clk 0:00:08.4]} 40... gxf4
{[%clk 0:01:02.7]} 41. Kg2 {[%clk 0:00:09.1]} 41... Rg6+ {[%clk 0:00:55.6]} 42.
Kf3 {[%clk 0:00:08.9]} 42... Ne6 {[%clk 0:00:56.1]} 43. Rg2 {[%clk 0:00:07.1]}
43... Nxd4+ {[%clk 0:00:56]} 0-1